[Event "January 9 Early 2024"]
[Site "https://www.chess.com"]
[Date "2024.01.11"]
[Round "1"]
[White "Tiarks, Jann-Christian"]
[Black "Gholami Orimi, Mahdi"]
[Result "0-1"]
[Board "145"]
[TimeControl "180+1"]
[WhiteFideId "12951595"]
[BlackFideId "12558486"]
[WhiteElo "2476"]
[BlackElo "2887"]
[WhiteTeam "GER"]
[BlackTeam "IRI"]
[WhiteClock "0:01:09"]
[BlackClock "0:00:17"]

1. e4 {[%clk 0:03:00]}  c5 {[%clk 0:02:55]} 2. Nc3 {[%clk 0:02:56]}  Nc6 {[%clk 0:02:54]} 3. g3 {[%clk 0:02:57]}  g6 {[%clk 0:02:55]} 4. Bg2 {[%clk 0:02:57]}  Bg7 {[%clk 0:02:55]} 5. Nge2 {[%clk 0:02:58]}  e6 {[%clk 0:02:56]} 6. d3 {[%clk 0:02:58]}  Nge7 {[%clk 0:02:56]} 7. Be3 {[%clk 0:02:59]}  d6 {[%clk 0:02:55]} 8. Qd2 {[%clk 0:03:00]}  Nd4 {[%clk 0:02:53]} 9. O-O-O {[%clk 0:02:59]}  Qa5 {[%clk 0:02:46]} 10. Kb1 {[%clk 0:02:58]}  Nxe2 {[%clk 0:02:44]} 11. Nxe2 {[%clk 0:02:56]}  Qxd2 {[%clk 0:02:41]} 12. Rxd2 {[%clk 0:02:57]}  Bd7 {[%clk 0:02:42]} 13. d4 {[%clk 0:02:56]}  c4 {[%clk 0:02:39]} 14. c3 {[%clk 0:02:55]}  Bc6 {[%clk 0:02:38]} 15. f4 {[%clk 0:02:54]}  f5 {[%clk 0:02:36]} 16. d5 {[%clk 0:02:54]}  exd5 {[%clk 0:02:34]} 17. exd5 {[%clk 0:02:54]}  Bd7 {[%clk 0:02:35]} 18. Bd4 {[%clk 0:02:52]}  Kf7 {[%clk 0:02:34]} 19. Bxg7 {[%clk 0:02:51]}  Kxg7 {[%clk 0:02:35]} 20. Nd4 {[%clk 0:02:50]}  Rhe8 {[%clk 0:02:35]} 21. Re2 {[%clk 0:02:50]}  Ng8 {[%clk 0:02:26]} 22. Rhe1 {[%clk 0:02:44]}  Rxe2 {[%clk 0:02:23]} 23. Rxe2 {[%clk 0:02:45]}  Kf7 {[%clk 0:02:23]} 24. Ne6 {[%clk 0:02:42]}  h6 {[%clk 0:02:18]} 25. Kc2 {[%clk 0:02:35]}  Nf6 {[%clk 0:02:18]} 26. Bf3 {[%clk 0:02:34]}  Rg8 {[%clk 0:02:11]} 27. h4 {[%clk 0:02:27]}  Re8 {[%clk 0:02:04]} 28. Nd4 {[%clk 0:02:24]}  Rc8 {[%clk 0:02:02]} 29. Re3 {[%clk 0:02:11]}  Rc5 {[%clk 0:02:01]} 30. Ne6 {[%clk 0:02:06]}  Ra5 {[%clk 0:02:02]} 31. Nd8+ {[%clk 0:02:01]}  Kf8 {[%clk 0:02:02]} 32. Nxb7 {[%clk 0:02:02]}  Rxa2 {[%clk 0:01:58]} 33. Nxd6 {[%clk 0:02:03]}  Ba4+ {[%clk 0:01:11]} 34. Kb1 {[%clk 0:02:00]}  Bb3 {[%clk 0:01:12]} 35. Re6 {[%clk 0:01:51]}  Kg7 {[%clk 0:01:11]} 36. Re7+ {[%clk 0:01:49]}  Kg8 {[%clk 0:01:11]} 37. Nb5 {[%clk 0:01:44]}  Ra5 {[%clk 0:01:10]} 38. Rb7 {[%clk 0:01:36]}  a6 {[%clk 0:01:04]} 39. Nc7 {[%clk 0:01:31]}  Ne4 {[%clk 0:00:36]} 40. Bxe4 {[%clk 0:01:16]}  fxe4 {[%clk 0:00:37]} 41. Kc1 {[%clk 0:01:16]}  e3 {[%clk 0:00:36]} 42. Rxb3 {[%clk 0:01:12]}  cxb3 {[%clk 0:00:18]} 43. Kd1 {[%clk 0:01:12]}  Ra2 {[%clk 0:00:18]} 44. Ke2 {[%clk 0:01:09]}  Rxb2+ {[%clk 0:00:18]} 45. Kxe3 {[%clk 0:01:10]}  Rc2 {[%clk 0:00:15]} 46. Kd3 {[%clk 0:01:10]}  Rc1 {[%clk 0:00:16]} 47. Kd2 {[%clk 0:01:09]}  b2 {[%clk 0:00:16]} 48. d6 {[%clk 0:01:07]}  b1=Q {[%clk 0:00:16]} 49. d7 {[%clk 0:01:08]}  Rd1+ {[%clk 0:00:17]} 50. Ke3 {[%clk 0:01:09]}  Rxd7 {[%clk 0:00:17]} 51. Ne6 {[%clk 0:01:09]}  Rd3+ {[%clk 0:00:17]} 0-1

[Event "January 9 Early 2024"]
[Site "https://www.chess.com"]
[Date "2024.01.11"]
[Round "1"]
[White "Zimmermann, Ulrich"]
[Black "Bacrot, Etienne"]
[Result "0-1"]
[Board "149"]
[TimeControl "180+1"]
[WhiteFideId "24654523"]
[BlackFideId "605506"]
[WhiteElo "2457"]
[BlackElo "2842"]
[WhiteTeam "GER"]
[BlackTeam "FRA"]
[WhiteClock "0:00:31"]
[BlackClock "0:00:14"]

1. Nf3 {[%clk 0:03:00]}  d5 {[%clk 0:02:59]} 2. g3 {[%clk 0:03:01]}  Nf6 {[%clk 0:02:59]} 3. Bg2 {[%clk 0:03:02]}  g6 {[%clk 0:02:59]} 4. O-O {[%clk 0:03:03]}  Bg7 {[%clk 0:03:00]} 5. d3 {[%clk 0:03:03]}  O-O {[%clk 0:03:00]} 6. Nc3 {[%clk 0:03:03]}  d4 {[%clk 0:02:57]} 7. Nb5 {[%clk 0:02:59]}  Nc6 {[%clk 0:02:57]} 8. c4 {[%clk 0:02:59]}  e5 {[%clk 0:02:52]} 9. e3 {[%clk 0:02:58]}  a6 {[%clk 0:02:44]} 10. Na3 {[%clk 0:02:55]}  dxe3 {[%clk 0:02:38]} 11. Bxe3 {[%clk 0:02:56]}  Bf5 {[%clk 0:02:35]} 12. d4 {[%clk 0:02:55]}  e4 {[%clk 0:02:16]} 13. Nh4 {[%clk 0:02:21]}  Bg4 {[%clk 0:02:15]} 14. Qd2 {[%clk 0:02:21]}  Qd7 {[%clk 0:02:04]} 15. Rae1 {[%clk 0:02:11]}  Rae8 {[%clk 0:01:55]} 16. Nc2 {[%clk 0:02:08]}  Bh3 {[%clk 0:01:52]} 17. f3 {[%clk 0:02:02]}  exf3 {[%clk 0:01:44]} 18. Nxf3 {[%clk 0:02:00]}  Ne4 {[%clk 0:01:42]} 19. Qd3 {[%clk 0:01:59]}  Bf5 {[%clk 0:01:39]} 20. Qd1 {[%clk 0:01:45]}  Bg4 {[%clk 0:01:33]} 21. Qd3 {[%clk 0:01:44]}  Bf5 {[%clk 0:01:15]} 22. Qd1 {[%clk 0:01:42]}  Bh3 {[%clk 0:01:08]} 23. Qd3 {[%clk 0:01:37]}  Bxg2 {[%clk 0:01:07]} 24. Kxg2 {[%clk 0:01:38]}  f5 {[%clk 0:01:07]} 25. Bf4 {[%clk 0:01:33]}  Nd8 {[%clk 0:01:03]} 26. Qb3 {[%clk 0:01:22]}  c6 {[%clk 0:00:49]} 27. d5 {[%clk 0:01:15]}  Kh8 {[%clk 0:00:37]} 28. Ncd4 {[%clk 0:01:10]}  c5 {[%clk 0:00:32]} 29. Ne2 {[%clk 0:00:48]}  b5 {[%clk 0:00:32]} 30. Nc3 {[%clk 0:00:42]}  Nf7 {[%clk 0:00:29]} 31. Nxe4 {[%clk 0:00:38]}  fxe4 {[%clk 0:00:29]} 32. Nd2 {[%clk 0:00:38]}  bxc4 {[%clk 0:00:16]} 33. Qxc4 {[%clk 0:00:36]}  g5 {[%clk 0:00:14]} 34. Be3 {[%clk 0:00:35]}  Ne5 {[%clk 0:00:14]} 35. Qxc5 {[%clk 0:00:34]}  Nd3 {[%clk 0:00:14]} 36. Qb4 {[%clk 0:00:31]}  Nxb4 {[%clk 0:00:14]} 0-1

[Event "January 9 Early 2024"]
[Site "https://www.chess.com"]
[Date "2024.01.11"]
[Round "1"]
[White "Sharapov, Evgeny"]
[Black "Nepomniachtchi, Ian"]
[Result "0-1"]
[Board "150"]
[TimeControl "180+1"]
[WhiteFideId "14103133"]
[BlackFideId "4168119"]
[WhiteElo "2531"]
[BlackElo "3124"]
[WhiteTeam "UKR"]
[BlackTeam "RUS"]
[WhiteClock "0:00:37"]
[BlackClock "0:00:48"]

1. e4 {[%clk 0:02:59]}  c5 {[%clk 0:02:58]} 2. Nf3 {[%clk 0:02:59]}  d6 {[%clk 0:02:59]} 3. d4 {[%clk 0:02:59]}  cxd4 {[%clk 0:03:00]} 4. Nxd4 {[%clk 0:02:59]}  Nf6 {[%clk 0:03:01]} 5. f3 {[%clk 0:03:00]}  e5 {[%clk 0:03:01]} 6. Nb3 {[%clk 0:02:59]}  a5 {[%clk 0:03:01]} 7. Bb5+ {[%clk 0:02:59]}  Nc6 {[%clk 0:03:00]} 8. Nc3 {[%clk 0:02:58]}  Be7 {[%clk 0:03:00]} 9. Be3 {[%clk 0:02:58]}  O-O {[%clk 0:02:59]} 10. Qd2 {[%clk 0:02:58]}  Be6 {[%clk 0:02:56]} 11. O-O {[%clk 0:02:54]}  Qc7 {[%clk 0:02:22]} 12. Rfd1 {[%clk 0:02:48]}  Rfd8 {[%clk 0:02:21]} 13. Qf2 {[%clk 0:02:46]}  Nd7 {[%clk 0:02:16]} 14. Nd5 {[%clk 0:02:39]}  Bxd5 {[%clk 0:02:15]} 15. exd5 {[%clk 0:02:39]}  Nb4 {[%clk 0:02:06]} 16. c3 {[%clk 0:02:35]}  Na6 {[%clk 0:02:06]} 17. Bxd7 {[%clk 0:02:33]}  Qxd7 {[%clk 0:02:06]} 18. Nxa5 {[%clk 0:02:29]}  Rf8 {[%clk 0:02:06]} 19. Nc4 {[%clk 0:02:26]}  Rae8 {[%clk 0:02:05]} 20. Nb6 {[%clk 0:02:20]}  Qc7 {[%clk 0:02:03]} 21. a4 {[%clk 0:02:12]}  f5 {[%clk 0:02:03]} 22. f4 {[%clk 0:02:09]}  g5 {[%clk 0:01:59]} 23. g3 {[%clk 0:01:44]}  exf4 {[%clk 0:01:59]} 24. gxf4 {[%clk 0:01:44]}  Bd8 {[%clk 0:02:00]} 25. a5 {[%clk 0:01:41]}  Re4 {[%clk 0:01:54]} 26. Kh1 {[%clk 0:01:38]}  Rfe8 {[%clk 0:01:52]} 27. Re1 {[%clk 0:01:33]}  Qe7 {[%clk 0:01:34]} 28. Bd2 {[%clk 0:01:32]}  Nc5 {[%clk 0:01:34]} 29. Rxe4 {[%clk 0:01:25]}  Nxe4 {[%clk 0:01:32]} 30. Qg2 {[%clk 0:01:22]}  Nxd2 {[%clk 0:01:31]} 31. Qxd2 {[%clk 0:01:22]}  Qe4+ {[%clk 0:01:28]} 32. Qg2 {[%clk 0:01:22]}  Qxf4 {[%clk 0:01:27]} 33. Rf1 {[%clk 0:01:21]}  Qe5 {[%clk 0:01:19]} 34. Nc4 {[%clk 0:01:16]}  Qf6 {[%clk 0:01:19]} 35. Qf3 {[%clk 0:01:06]}  f4 {[%clk 0:01:18]} 36. Qg4 {[%clk 0:01:03]}  Be7 {[%clk 0:01:07]} 37. Qd7 {[%clk 0:00:56]}  Rd8 {[%clk 0:01:07]} 38. Qxb7 {[%clk 0:00:52]}  Bf8 {[%clk 0:01:08]} 39. Nb6 {[%clk 0:00:44]}  Qf5 {[%clk 0:01:05]} 40. Qc7 {[%clk 0:00:37]}  Qe4+ {[%clk 0:01:04]} 41. Kg1 {[%clk 0:00:37]}  Qe3+ {[%clk 0:01:04]} 42. Kh1 {[%clk 0:00:38]}  Qe2 {[%clk 0:00:58]} 43. Kg1 {[%clk 0:00:37]}  Re8 {[%clk 0:00:51]} 44. Qc4 {[%clk 0:00:37]}  Qg4+ {[%clk 0:00:48]} 45. Kh1 {[%clk 0:00:37]}  Re2 {[%clk 0:00:48]} 0-1

[Event "January 9 Early 2024"]
[Site "https://www.chess.com"]
[Date "2024.01.11"]
[Round "1"]
[White "Guerrero Olmos, Sergio"]
[Black "Beerdsen, Thomas"]
[Result "0-1"]
[Board "151"]
[TimeControl "180+1"]
[WhiteFideId "2257238"]
[BlackFideId "1030108"]
[WhiteElo "2460"]
[BlackElo "2848"]
[WhiteTeam "ESP"]
[BlackTeam "NED"]
[WhiteClock "0:00:01"]
[BlackClock "0:01:33"]

1. d4 {[%clk 0:03:00]}  Nf6 {[%clk 0:02:58]} 2. Nf3 {[%clk 0:03:00]}  Nc6 {[%clk 0:02:58]} 3. d5 {[%clk 0:02:59]}  Nb4 {[%clk 0:02:58]} 4. c4 {[%clk 0:02:54]}  e6 {[%clk 0:02:59]} 5. Nc3 {[%clk 0:02:52]}  Na6 {[%clk 0:02:59]} 6. a3 {[%clk 0:02:50]}  c6 {[%clk 0:02:58]} 7. d6 {[%clk 0:02:38]}  Nc5 {[%clk 0:02:52]} 8. Bf4 {[%clk 0:01:50]}  Nce4 {[%clk 0:02:41]} 9. Nxe4 {[%clk 0:01:30]}  Nxe4 {[%clk 0:02:42]} 10. Qd4 {[%clk 0:01:30]}  f5 {[%clk 0:02:42]} 11. e3 {[%clk 0:01:27]}  Qb6 {[%clk 0:02:33]} 12. Rd1 {[%clk 0:01:13]}  c5 {[%clk 0:02:33]} 13. Qd3 {[%clk 0:01:04]}  Qxb2 {[%clk 0:02:32]} 14. Be2 {[%clk 0:01:01]}  Qc3+ {[%clk 0:02:32]} 15. Qxc3 {[%clk 0:00:58]}  Nxc3 {[%clk 0:02:33]} 16. Rd3 {[%clk 0:00:56]}  Nxe2 {[%clk 0:02:31]} 17. Kxe2 {[%clk 0:00:56]}  b6 {[%clk 0:02:29]} 18. Ne5 {[%clk 0:00:55]}  g6 {[%clk 0:02:25]} 19. h4 {[%clk 0:00:50]}  Bg7 {[%clk 0:02:25]} 20. h5 {[%clk 0:00:49]}  g5 {[%clk 0:02:25]} 21. h6 {[%clk 0:00:48]}  Bf6 {[%clk 0:02:24]} 22. Bg3 {[%clk 0:00:47]}  Ba6 {[%clk 0:02:24]} 23. Rc1 {[%clk 0:00:43]}  Rg8 {[%clk 0:02:24]} 24. f3 {[%clk 0:00:38]}  f4 {[%clk 0:02:23]} 25. Ng4 {[%clk 0:00:35]}  Kf7 {[%clk 0:02:19]} 26. exf4 {[%clk 0:00:34]}  gxf4 {[%clk 0:02:20]} 27. Bxf4 {[%clk 0:00:34]}  Bb2 {[%clk 0:02:17]} 28. Rb1 {[%clk 0:00:31]}  Bd4 {[%clk 0:02:15]} 29. Rc1 {[%clk 0:00:27]}  Raf8 {[%clk 0:02:15]} 30. Kf1 {[%clk 0:00:18]}  Ke8 {[%clk 0:02:15]} 31. g3 {[%clk 0:00:15]}  Rxg4 {[%clk 0:02:13]} 32. fxg4 {[%clk 0:00:15]}  e5 {[%clk 0:02:14]} 33. Rf3 {[%clk 0:00:08]}  exf4 {[%clk 0:02:13]} 34. gxf4 {[%clk 0:00:09]}  Kf7 {[%clk 0:02:07]} 35. f5 {[%clk 0:00:07]}  Kf6 {[%clk 0:02:07]} 36. Ke2 {[%clk 0:00:06]}  Rg8 {[%clk 0:02:05]} 37. Rf4 {[%clk 0:00:03]}  Be5 {[%clk 0:02:00]} 38. Re4 {[%clk 0:00:03]}  Bb7 {[%clk 0:02:01]} 39. Rxe5 {[%clk 0:00:02]}  Kxe5 {[%clk 0:02:01]} 40. Rg1 {[%clk 0:00:02]}  Kf4 {[%clk 0:02:01]} 41. Kd3 {[%clk 0:00:02]}  Be4+ {[%clk 0:01:59]} 42. Kc3 {[%clk 0:00:01]}  Rxg4 {[%clk 0:01:58]} 43. f6 {[%clk 0:00:01]}  Bg6 {[%clk 0:01:52]} 44. f7 {[%clk 0:00:02]}  Bxf7 {[%clk 0:01:51]} 45. Rf1+ {[%clk 0:00:03]}  Ke5 {[%clk 0:01:46]} 46. Rxf7 {[%clk 0:00:04]}  Rg3+ {[%clk 0:01:47]} 47. Kb2 {[%clk 0:00:03]}  Kxd6 {[%clk 0:01:48]} 48. Rxh7 {[%clk 0:00:03]}  Rh3 {[%clk 0:01:48]} 49. Rg7 {[%clk 0:00:03]}  Rxh6 {[%clk 0:01:49]} 50. Kb3 {[%clk 0:00:04]}  Rh3+ {[%clk 0:01:49]} 51. Ka4 {[%clk 0:00:04]}  Rc3 {[%clk 0:01:49]} 52. Kb5 {[%clk 0:00:03]}  Rb3+ {[%clk 0:01:41]} 53. Ka4 {[%clk 0:00:02]}  Rh3 {[%clk 0:01:37]} 54. Rg6+ {[%clk 0:00:02]}  Kc7 {[%clk 0:01:37]} 55. Rg4 {[%clk 0:00:02]}  Rc3 {[%clk 0:01:37]} 56. Rf4 {[%clk 0:00:01]}  a6 {[%clk 0:01:37]} 57. Rg4 {[%clk 0:00:01]}  Rxc4+ {[%clk 0:01:33]} 0-1

[Event "January 9 Early 2024"]
[Site "https://www.chess.com"]
[Date "2024.01.11"]
[Round "1"]
[White "Paikens, Reinis"]
[Black "Estrada Nieto, Julian"]
[Result "1-0"]
[Board "152"]
[TimeControl "180+1"]
[WhiteFideId "11624078"]
[BlackFideId "5101018"]
[WhiteElo "2258"]
[BlackElo "2591"]
[WhiteTeam "LAT"]
[BlackTeam "ESP"]
[WhiteClock "0:00:21"]
[BlackClock "0:00:30"]

1. c4 {[%clk 0:02:59]}  e5 {[%clk 0:02:59]} 2. Nc3 {[%clk 0:02:59]}  Nf6 {[%clk 0:02:59]} 3. g3 {[%clk 0:02:59]}  d5 {[%clk 0:02:56]} 4. cxd5 {[%clk 0:02:59]}  Nxd5 {[%clk 0:02:57]} 5. Bg2 {[%clk 0:03:00]}  Nb6 {[%clk 0:02:56]} 6. a4 {[%clk 0:03:01]}  a5 {[%clk 0:02:56]} 7. Nf3 {[%clk 0:03:01]}  Nc6 {[%clk 0:02:56]} 8. d3 {[%clk 0:03:02]}  Be7 {[%clk 0:02:56]} 9. O-O {[%clk 0:03:01]}  O-O {[%clk 0:02:56]} 10. Nb5 {[%clk 0:03:02]}  Bg4 {[%clk 0:02:53]} 11. Be3 {[%clk 0:03:02]}  Nd5 {[%clk 0:02:42]} 12. Rc1 {[%clk 0:02:59]}  Nxe3 {[%clk 0:02:39]} 13. fxe3 {[%clk 0:03:00]}  Qd7 {[%clk 0:02:39]} 14. e4 {[%clk 0:02:56]}  f6 {[%clk 0:02:33]} 15. Nc3 {[%clk 0:02:41]}  Nd4 {[%clk 0:02:23]} 16. Nd5 {[%clk 0:01:51]}  Bxf3 {[%clk 0:02:17]} 17. Rxc7 {[%clk 0:01:15]}  Nxe2+ {[%clk 0:02:11]} 18. Kf2 {[%clk 0:00:51]}  Bc5+ {[%clk 0:01:54]} 19. Rxc5 {[%clk 0:00:22]}  Bxg2 {[%clk 0:01:20]} 20. Kxg2 {[%clk 0:00:20]}  Nd4 {[%clk 0:01:20]} 21. Qc1 {[%clk 0:00:19]}  Rf7 {[%clk 0:01:10]} 22. Qc4 {[%clk 0:00:18]}  Kh8 {[%clk 0:01:08]} 23. Nb6 {[%clk 0:00:17]}  Qg4 {[%clk 0:00:57]} 24. Nxa8 {[%clk 0:00:16]}  h5 {[%clk 0:00:57]} 25. Qxf7 {[%clk 0:00:16]}  h4 {[%clk 0:00:52]} 26. Rc7 {[%clk 0:00:16]}  h3+ {[%clk 0:00:47]} 27. Kh1 {[%clk 0:00:14]}  Nf3 {[%clk 0:00:34]} 28. Qxg7+ {[%clk 0:00:14]}  Qxg7 {[%clk 0:00:34]} 29. Rxg7 {[%clk 0:00:15]}  Kxg7 {[%clk 0:00:34]} 30. Rxf3 {[%clk 0:00:16]}  Kf7 {[%clk 0:00:33]} 31. Nb6 {[%clk 0:00:16]}  Ke6 {[%clk 0:00:34]} 32. Nd5 {[%clk 0:00:17]}  f5 {[%clk 0:00:34]} 33. Rxf5 {[%clk 0:00:18]}  Kd6 {[%clk 0:00:34]} 34. Rf6+ {[%clk 0:00:18]}  Kc5 {[%clk 0:00:35]} 35. Rh6 {[%clk 0:00:18]}  Kd4 {[%clk 0:00:35]} 36. Rxh3 {[%clk 0:00:19]}  Kxd3 {[%clk 0:00:35]} 37. Rh4 {[%clk 0:00:19]}  Kc2 {[%clk 0:00:35]} 38. Rh5 {[%clk 0:00:19]}  Kxb2 {[%clk 0:00:32]} 39. Rxe5 {[%clk 0:00:20]}  Kb3 {[%clk 0:00:32]} 40. Nb6 {[%clk 0:00:21]}  Kc3 {[%clk 0:00:30]} 41. Rd5 {[%clk 0:00:21]} 1-0

[Event "January 9 Early 2024"]
[Site "https://www.chess.com"]
[Date "2024.01.11"]
[Round "1"]
[White "Drozdowski, Kacper"]
[Black "Andrews, Todd"]
[Result "1-0"]
[Board "153"]
[TimeControl "180+1"]
[WhiteFideId "1136720"]
[BlackFideId "2012456"]
[WhiteElo "2972"]
[BlackElo "2505"]
[WhiteTeam "POL"]
[BlackTeam "USA"]
[WhiteClock "0:00:42"]
[BlackClock "0:00:06"]

1. e4 {[%clk 0:03:00]}  e6 {[%clk 0:02:59]} 2. d4 {[%clk 0:02:58]}  d5 {[%clk 0:03:00]} 3. Nd2 {[%clk 0:02:58]}  Nf6 {[%clk 0:02:59]} 4. e5 {[%clk 0:02:58]}  Nfd7 {[%clk 0:03:00]} 5. Bd3 {[%clk 0:02:59]}  c5 {[%clk 0:02:58]} 6. c3 {[%clk 0:02:59]}  Nc6 {[%clk 0:02:57]} 7. Ngf3 {[%clk 0:02:59]}  cxd4 {[%clk 0:02:56]} 8. cxd4 {[%clk 0:02:58]}  Qb6 {[%clk 0:02:56]} 9. O-O {[%clk 0:02:58]}  g6 {[%clk 0:02:55]} 10. Nb3 {[%clk 0:02:53]}  a5 {[%clk 0:02:53]} 11. a4 {[%clk 0:02:53]}  Bg7 {[%clk 0:02:53]} 12. Be3 {[%clk 0:02:52]}  O-O {[%clk 0:02:52]} 13. Rc1 {[%clk 0:02:52]}  f6 {[%clk 0:02:51]} 14. exf6 {[%clk 0:02:48]}  Nxf6 {[%clk 0:02:45]} 15. h3 {[%clk 0:02:47]}  Bd7 {[%clk 0:02:43]} 16. Nc5 {[%clk 0:02:43]}  Rae8 {[%clk 0:02:35]} 17. Nxd7 {[%clk 0:02:26]}  Nxd7 {[%clk 0:02:33]} 18. Bb5 {[%clk 0:02:26]}  Re7 {[%clk 0:02:14]} 19. Re1 {[%clk 0:02:08]}  Qd8 {[%clk 0:01:56]} 20. Bxc6 {[%clk 0:02:05]}  bxc6 {[%clk 0:01:55]} 21. Rxc6 {[%clk 0:02:03]}  e5 {[%clk 0:01:51]} 22. Bg5 {[%clk 0:01:58]}  Bf6 {[%clk 0:01:49]} 23. Bxf6 {[%clk 0:01:57]}  Nxf6 {[%clk 0:01:44]} 24. Nxe5 {[%clk 0:01:52]}  Ne4 {[%clk 0:01:42]} 25. f3 {[%clk 0:01:51]}  Ng3 {[%clk 0:01:24]} 26. Qd2 {[%clk 0:01:39]}  Nf5 {[%clk 0:01:15]} 27. Rc5 {[%clk 0:01:37]}  Rfe8 {[%clk 0:00:50]} 28. Rd1 {[%clk 0:01:23]}  Qd6 {[%clk 0:00:35]} 29. f4 {[%clk 0:01:17]}  g5 {[%clk 0:00:16]} 30. Rc6 {[%clk 0:01:09]}  Qb8 {[%clk 0:00:13]} 31. fxg5 {[%clk 0:01:06]}  Nxd4 {[%clk 0:00:13]} 32. Qxd4 {[%clk 0:01:06]}  Rxe5 {[%clk 0:00:12]} 33. Rcc1 {[%clk 0:01:00]}  Qb3 {[%clk 0:00:09]} 34. Rd3 {[%clk 0:00:55]}  Qb7 {[%clk 0:00:08]} 35. Rf1 {[%clk 0:00:46]}  Qc7 {[%clk 0:00:07]} 36. Qf4 {[%clk 0:00:42]}  Re2 {[%clk 0:00:06]} 37. Qxc7 {[%clk 0:00:42]} 1-0

[Event "January 9 Early 2024"]
[Site "https://www.chess.com"]
[Date "2024.01.11"]
[Round "1"]
[White "Leiva, Gianmarco"]
[Black "Wael Sabry, Mina"]
[Result "0-1"]
[Board "156"]
[TimeControl "180+1"]
[WhiteFideId "3804399"]
[BlackFideId "10670173"]
[WhiteElo "2695"]
[BlackElo "2401"]
[WhiteTeam "PER"]
[BlackTeam "EGY"]
[WhiteClock "0:00:02"]
[BlackClock "0:01:17"]

1. e4 {[%clk 0:03:00]}  c5 {[%clk 0:02:59]} 2. Nf3 {[%clk 0:03:00]}  d6 {[%clk 0:02:59]} 3. c3 {[%clk 0:02:56]}  Nf6 {[%clk 0:02:58]} 4. h3 {[%clk 0:02:52]}  g6 {[%clk 0:02:58]} 5. Bd3 {[%clk 0:02:53]}  Bg7 {[%clk 0:02:57]} 6. Bc2 {[%clk 0:02:51]}  O-O {[%clk 0:02:58]} 7. d4 {[%clk 0:02:51]}  cxd4 {[%clk 0:02:58]} 8. cxd4 {[%clk 0:02:52]}  Nc6 {[%clk 0:02:58]} 9. O-O {[%clk 0:02:52]}  d5 {[%clk 0:02:58]} 10. e5 {[%clk 0:02:51]}  Ne4 {[%clk 0:02:58]} 11. Nc3 {[%clk 0:02:50]}  Nxc3 {[%clk 0:02:48]} 12. bxc3 {[%clk 0:02:48]}  Bd7 {[%clk 0:02:44]} 13. Ng5 {[%clk 0:02:35]}  h6 {[%clk 0:02:41]} 14. Nf3 {[%clk 0:02:35]}  Na5 {[%clk 0:02:40]} 15. Bd2 {[%clk 0:02:20]}  Nc4 {[%clk 0:02:38]} 16. Qc1 {[%clk 0:02:20]}  Nxd2 {[%clk 0:02:36]} 17. Qxd2 {[%clk 0:02:20]}  Rc8 {[%clk 0:02:37]} 18. Bd3 {[%clk 0:02:20]}  Qa5 {[%clk 0:02:29]} 19. Rac1 {[%clk 0:02:18]}  Rc6 {[%clk 0:02:23]} 20. c4 {[%clk 0:02:14]}  Qxd2 {[%clk 0:02:22]} 21. Nxd2 {[%clk 0:02:15]}  Rfc8 {[%clk 0:02:22]} 22. c5 {[%clk 0:02:16]}  R6c7 {[%clk 0:02:20]} 23. Nb3 {[%clk 0:02:15]}  b6 {[%clk 0:02:19]} 24. Ba6 {[%clk 0:02:14]}  Rb8 {[%clk 0:02:18]} 25. f4 {[%clk 0:02:11]}  Ba4 {[%clk 0:02:17]} 26. Rf3 {[%clk 0:01:52]}  e6 {[%clk 0:02:11]} 27. Rfc3 {[%clk 0:01:45]}  Bf8 {[%clk 0:02:09]} 28. Kf2 {[%clk 0:01:45]}  bxc5 {[%clk 0:01:58]} 29. Nxc5 {[%clk 0:01:39]}  Rb2+ {[%clk 0:01:54]} 30. Kf1 {[%clk 0:01:35]}  Rxa2 {[%clk 0:01:52]} 31. Nxa4 {[%clk 0:01:08]}  Rxc3 {[%clk 0:01:51]} 32. Nxc3 {[%clk 0:01:09]}  Rxa6 {[%clk 0:01:51]} 33. Rc2 {[%clk 0:00:52]}  Rc6 {[%clk 0:01:51]} 34. Rc1 {[%clk 0:00:49]}  Bb4 {[%clk 0:01:48]} 35. Na2 {[%clk 0:00:49]}  Rxc1+ {[%clk 0:01:48]} 36. Nxc1 {[%clk 0:00:50]}  Bd2 {[%clk 0:01:49]} 37. Nb3 {[%clk 0:00:32]}  Bxf4 {[%clk 0:01:49]} 38. Ke2 {[%clk 0:00:31]}  h5 {[%clk 0:01:47]} 39. g4 {[%clk 0:00:30]}  hxg4 {[%clk 0:01:47]} 40. hxg4 {[%clk 0:00:31]}  g5 {[%clk 0:01:47]} 41. Kd3 {[%clk 0:00:21]}  f6 {[%clk 0:01:39]} 42. exf6 {[%clk 0:00:17]}  Kf7 {[%clk 0:01:39]} 43. Nc5 {[%clk 0:00:15]}  Bc7 {[%clk 0:01:38]} 44. Nd7 {[%clk 0:00:14]}  a5 {[%clk 0:01:27]} 45. Kc3 {[%clk 0:00:14]}  Ke8 {[%clk 0:01:23]} 46. Nc5 {[%clk 0:00:12]}  e5 {[%clk 0:01:22]} 47. Ne6 {[%clk 0:00:11]}  Bd6 {[%clk 0:01:21]} 48. Nxg5 {[%clk 0:00:11]}  e4 {[%clk 0:01:20]} 49. Nh7 {[%clk 0:00:05]}  Kf7 {[%clk 0:01:18]} 50. g5 {[%clk 0:00:02]}  Bb4+ {[%clk 0:01:18]} 51. Kc2 {[%clk 0:00:02]}  a4 {[%clk 0:01:17]} 52. Kb2 {[%clk 0:00:01]}  e3 {[%clk 0:01:17]} 53. Kc2 {[%clk 0:00:02]}  e2 {[%clk 0:01:17]} 0-1

[Event "January 9 Early 2024"]
[Site "https://www.chess.com"]
[Date "2024.01.11"]
[Round "1"]
[White "Kleibel, Uwe"]
[Black "Garakov, Mikhael"]
[Result "1-0"]
[Board "158"]
[TimeControl "180+1"]
[WhiteFideId "1270982"]
[BlackFideId "4169034"]
[WhiteElo "2358"]
[BlackElo "2653"]
[WhiteTeam "GER"]
[BlackTeam "RUS"]
[WhiteClock "0:00:27"]
[BlackClock "0:00:05"]

1. e4 {[%clk 0:02:55]}  c5 {[%clk 0:02:58]} 2. Nf3 {[%clk 0:02:54]}  e6 {[%clk 0:02:54]} 3. g3 {[%clk 0:02:54]}  Nc6 {[%clk 0:02:53]} 4. Bg2 {[%clk 0:02:53]}  Nf6 {[%clk 0:02:52]} 5. Qe2 {[%clk 0:02:53]}  d6 {[%clk 0:02:51]} 6. O-O {[%clk 0:02:52]}  Be7 {[%clk 0:02:50]} 7. Rd1 {[%clk 0:02:52]}  O-O {[%clk 0:02:47]} 8. d4 {[%clk 0:02:52]}  cxd4 {[%clk 0:02:46]} 9. Nxd4 {[%clk 0:02:53]}  Nxd4 {[%clk 0:02:44]} 10. Rxd4 {[%clk 0:02:52]}  Qb6 {[%clk 0:02:37]} 11. Rd1 {[%clk 0:02:50]}  Bd7 {[%clk 0:02:34]} 12. c4 {[%clk 0:02:50]}  Rac8 {[%clk 0:02:31]} 13. Nc3 {[%clk 0:02:49]}  a6 {[%clk 0:02:19]} 14. b3 {[%clk 0:02:34]}  Qa7 {[%clk 0:01:39]} 15. Be3 {[%clk 0:02:31]}  Qb8 {[%clk 0:01:38]} 16. Rac1 {[%clk 0:02:31]}  b5 {[%clk 0:01:35]} 17. cxb5 {[%clk 0:02:07]}  axb5 {[%clk 0:01:36]} 18. a4 {[%clk 0:02:08]}  bxa4 {[%clk 0:01:23]} 19. bxa4 {[%clk 0:02:08]}  Bc6 {[%clk 0:01:23]} 20. a5 {[%clk 0:01:23]}  Qa8 {[%clk 0:01:18]} 21. a6 {[%clk 0:01:20]}  Nxe4 {[%clk 0:01:16]} 22. Nxe4 {[%clk 0:01:19]}  Bxe4 {[%clk 0:01:16]} 23. Bxe4 {[%clk 0:01:18]}  Qxe4 {[%clk 0:01:16]} 24. Rxc8 {[%clk 0:01:08]}  Rxc8 {[%clk 0:01:15]} 25. a7 {[%clk 0:01:08]}  Bg5 {[%clk 0:00:31]} 26. Qa6 {[%clk 0:01:04]}  Ra8 {[%clk 0:00:05]} 27. Bxg5 {[%clk 0:00:33]}  h6 {[%clk 0:00:05]} 28. Be3 {[%clk 0:00:29]}  Kh7 {[%clk 0:00:05]} 29. Qd3 {[%clk 0:00:27]} 1-0